[Event "Titled Tuesday Blitz March 14 Early 2023"]
[White "Vallejo Pons, Francisco"]
[Black "Wei, Yi"]
[WhiteFideId "2205530"]
[BlackFideId "8603405"]
[WhiteElo "2589"]
[BlackElo "2686"]
[Result "1/2-1/2"]
[Round "04"]
[TimeControl "180+2"]
[Date "2023.03.14"]
[WhiteClock "0:00:04"]
[BlackClock "0:00:03"]

1. e4 {[%clk 0:02:54]}  c5 {[%clk 0:03:00]} 2. b3 {[%clk 0:02:54]}  g6 {[%clk 0:02:59]} 3. Bb2 {[%clk 0:02:53]}  Nf6 {[%clk 0:02:59]} 4. e5 {[%clk 0:02:53]}  Nd5 {[%clk 0:02:57]} 5. Nc3 {[%clk 0:02:54]}  Nxc3 {[%clk 0:02:51]} 6. dxc3 {[%clk 0:02:55]}  Bg7 {[%clk 0:02:51]} 7. Qd5 {[%clk 0:02:42]}  Nc6 {[%clk 0:02:35]} 8. Qxc5 {[%clk 0:02:37]}  O-O {[%clk 0:02:14]} 9. O-O-O {[%clk 0:02:35]}  Nxe5 {[%clk 0:02:09]} 10. c4 {[%clk 0:02:05]}  d6 {[%clk 0:02:01]} 11. Qd4 {[%clk 0:01:54]}  Qa5 {[%clk 0:01:27]} 12. Kb1 {[%clk 0:01:33]}  Bf6 {[%clk 0:01:17]} 13. Qd2 {[%clk 0:01:32]}  Qxd2 {[%clk 0:01:07]} 14. Rxd2 {[%clk 0:01:33]}  Bf5 {[%clk 0:00:49]} 15. Ne2 {[%clk 0:01:29]}  Bg7 {[%clk 0:00:37]} 16. Nc3 {[%clk 0:01:21]}  Rfe8 {[%clk 0:00:27]} 17. Be2 {[%clk 0:01:19]}  Rac8 {[%clk 0:00:26]} 18. Re1 {[%clk 0:01:09]}  Nc6 {[%clk 0:00:22]} 19. f4 {[%clk 0:00:52]}  Nd4 {[%clk 0:00:18]} 20. Bd1 {[%clk 0:00:50]}  h5 {[%clk 0:00:11]} 21. g3 {[%clk 0:00:40]}  Bg4 {[%clk 0:00:10]} 22. Nd5 {[%clk 0:00:35]}  Nf5 {[%clk 0:00:08]} 23. Be2 {[%clk 0:00:20]}  Kf8 {[%clk 0:00:06]} 24. Bf1 {[%clk 0:00:19]}  Bxb2 {[%clk 0:00:06]} 25. Kxb2 {[%clk 0:00:19]}  Bf3 {[%clk 0:00:05]} 26. Nc3 {[%clk 0:00:16]}  Bc6 {[%clk 0:00:05]} 27. Rf2 {[%clk 0:00:14]}  Kg7 {[%clk 0:00:05]} 28. Bd3 {[%clk 0:00:14]}  Nh6 {[%clk 0:00:03]} 29. h3 {[%clk 0:00:13]}  Bd7 {[%clk 0:00:03]} 30. Rh2 {[%clk 0:00:12]}  Be6 {[%clk 0:00:03]} 31. a4 {[%clk 0:00:12]}  a5 {[%clk 0:00:03]} 32. Be4 {[%clk 0:00:12]}  b6 {[%clk 0:00:03]} 33. Bd5 {[%clk 0:00:12]}  Bd7 {[%clk 0:00:02]} 34. Bf3 {[%clk 0:00:11]}  Nf5 {[%clk 0:00:02]} 35. g4 {[%clk 0:00:10]}  Nd4 {[%clk 0:00:02]} 36. Bd1 {[%clk 0:00:09]}  hxg4 {[%clk 0:00:02]} 37. hxg4 {[%clk 0:00:10]}  Bc6 {[%clk 0:00:03]} 38. Rd2 {[%clk 0:00:10]}  Ne6 {[%clk 0:00:03]} 39. f5 {[%clk 0:00:10]}  gxf5 {[%clk 0:00:03]} 40. gxf5 {[%clk 0:00:10]}  Ng5 {[%clk 0:00:04]} 41. Rde2 {[%clk 0:00:04]}  Kf6 {[%clk 0:00:04]} 42. Re3 {[%clk 0:00:05]}  Rb8 {[%clk 0:00:02]} 43. Be2 {[%clk 0:00:04]}  Rbc8 {[%clk 0:00:02]} 44. Bd3 {[%clk 0:00:05]}  e5 {[%clk 0:00:03]} 45. fxe6 {[%clk 0:00:05]}  Rxe6 {[%clk 0:00:03]} 46. Rf1+ {[%clk 0:00:05]}  Ke7 {[%clk 0:00:03]} 47. Rg3 {[%clk 0:00:05]}  Re5 {[%clk 0:00:03]} 48. Bf5 {[%clk 0:00:05]}  Rg8 {[%clk 0:00:04]} 49. Bd3 {[%clk 0:00:05]}  f6 {[%clk 0:00:04]} 50. Rg4 {[%clk 0:00:04]}  Rh8 {[%clk 0:00:04]} 51. Rgf4 {[%clk 0:00:04]}  Rh6 {[%clk 0:00:04]} 52. Bf5 {[%clk 0:00:03]}  Re3 {[%clk 0:00:03]} 53. Bd3 {[%clk 0:00:03]}  Re5 {[%clk 0:00:03]} 54. Bf5 {[%clk 0:00:04]}  Re3 {[%clk 0:00:04]} 55. Bd3 {[%clk 0:00:04]}  Re5 {[%clk 0:00:03]} 1/2-1/2


[Site "https://www.chess.com"]

[Event "Titled Tuesday Blitz March 14 Early 2023"]
[White "Erigaisi Arjun"]
[Black "Makhnev, Denis"]
[WhiteFideId "35009192"]
[BlackFideId "13707647"]
[WhiteElo "2737"]
[BlackElo "2525"]
[Result "1-0"]
[Round "04"]
[TimeControl "180+2"]
[Date "2023.03.14"]
[WhiteClock "0:00:05"]
[BlackClock "0:00:04"]

1. b3 {[%clk 0:03:00]}  e5 {[%clk 0:02:57]} 2. Bb2 {[%clk 0:03:00]}  Nc6 {[%clk 0:02:57]} 3. e3 {[%clk 0:03:00]}  Nf6 {[%clk 0:02:57]} 4. c4 {[%clk 0:03:00]}  d5 {[%clk 0:02:38]} 5. cxd5 {[%clk 0:03:01]}  Nxd5 {[%clk 0:02:38]} 6. a3 {[%clk 0:03:01]}  Bd6 {[%clk 0:02:38]} 7. Qc2 {[%clk 0:02:58]}  O-O {[%clk 0:02:33]} 8. Nf3 {[%clk 0:02:58]}  Be6 {[%clk 0:02:29]} 9. h4 {[%clk 0:02:55]}  f6 {[%clk 0:02:11]} 10. Bc4 {[%clk 0:02:53]}  Qe8 {[%clk 0:02:04]} 11. h5 {[%clk 0:02:43]}  Nb6 {[%clk 0:01:58]} 12. h6 {[%clk 0:02:40]}  g6 {[%clk 0:01:41]} 13. Bxe6+ {[%clk 0:02:35]}  Qxe6 {[%clk 0:01:41]} 14. Nc3 {[%clk 0:02:36]}  Rae8 {[%clk 0:00:53]} 15. Ne4 {[%clk 0:02:30]}  Qg4 {[%clk 0:00:40]} 16. Rh4 {[%clk 0:01:57]}  Qe6 {[%clk 0:00:32]} 17. O-O-O {[%clk 0:01:51]}  a5 {[%clk 0:00:29]} 18. Kb1 {[%clk 0:01:49]}  Qe7 {[%clk 0:00:19]} 19. Ka2 {[%clk 0:01:21]}  f5 {[%clk 0:00:19]} 20. Nxd6 {[%clk 0:00:54]}  cxd6 {[%clk 0:00:20]} 21. Rhh1 {[%clk 0:00:55]}  Rc8 {[%clk 0:00:20]} 22. Qd3 {[%clk 0:00:55]}  a4 {[%clk 0:00:18]} 23. Qb5 {[%clk 0:00:52]}  axb3+ {[%clk 0:00:13]} 24. Kb1 {[%clk 0:00:46]}  Nd7 {[%clk 0:00:13]} 25. d4 {[%clk 0:00:41]}  exd4 {[%clk 0:00:08]} 26. Nxd4 {[%clk 0:00:33]}  Qe4+ {[%clk 0:00:08]} 27. Ka1 {[%clk 0:00:30]}  Nxd4 {[%clk 0:00:03]} 28. Rxd4 {[%clk 0:00:27]}  Qxg2 {[%clk 0:00:03]} 29. Qxb3+ {[%clk 0:00:21]}  Rf7 {[%clk 0:00:02]} 30. Rhd1 {[%clk 0:00:16]}  Nc5 {[%clk 0:00:03]} 31. Qd5 {[%clk 0:00:15]}  Qxd5 {[%clk 0:00:03]} 32. Rxd5 {[%clk 0:00:16]}  Ne4 {[%clk 0:00:03]} 33. f3 {[%clk 0:00:14]}  Ng5 {[%clk 0:00:03]} 34. Rxd6 {[%clk 0:00:11]}  Nxf3 {[%clk 0:00:03]} 35. Rd7 {[%clk 0:00:10]}  Nh2 {[%clk 0:00:03]} 36. Rxf7 {[%clk 0:00:09]}  Kxf7 {[%clk 0:00:04]} 37. Rd7+ {[%clk 0:00:09]}  Ke6 {[%clk 0:00:04]} 38. Rxh7 {[%clk 0:00:09]}  Ng4 {[%clk 0:00:03]} 39. Rg7 {[%clk 0:00:10]}  Ne5 {[%clk 0:00:03]} 40. h7 {[%clk 0:00:08]}  Rh8 {[%clk 0:00:03]} 41. Rxb7 {[%clk 0:00:09]}  g5 {[%clk 0:00:03]} 42. Rb5 {[%clk 0:00:05]}  Rxh7 {[%clk 0:00:03]} 43. Rxe5+ {[%clk 0:00:05]}  Kf6 {[%clk 0:00:04]} 44. Rb5+ {[%clk 0:00:03]}  Kg6 {[%clk 0:00:04]} 45. a4 {[%clk 0:00:03]}  Rh3 {[%clk 0:00:04]} 46. a5 {[%clk 0:00:03]}  Rxe3 {[%clk 0:00:04]} 47. a6 {[%clk 0:00:04]}  Re8 {[%clk 0:00:04]} 48. a7 {[%clk 0:00:04]}  Ra8 {[%clk 0:00:04]} 49. Bd4 {[%clk 0:00:04]}  f4 {[%clk 0:00:04]} 50. Rb8 {[%clk 0:00:05]}  Rxb8 {[%clk 0:00:04]} 51. axb8=Q {[%clk 0:00:05]} 1-0


[Site "https://www.chess.com"]

[Event "Titled Tuesday Blitz March 14 Early 2023"]
[White "Xu, Xiangyu"]
[Black "Shimanov, Aleksandr"]
[WhiteFideId "8608288"]
[BlackFideId "4198603"]
[WhiteElo "2477"]
[BlackElo "2631"]
[Result "1-0"]
[Round "04"]
[TimeControl "180+2"]
[Date "2023.03.14"]
[WhiteClock "0:00:19"]
[BlackClock "0:00:04"]

1. d4 {[%clk 0:03:00]}  Nf6 {[%clk 0:02:56]} 2. Bg5 {[%clk 0:03:00]}  g6 {[%clk 0:02:47]} 3. Bxf6 {[%clk 0:03:00]}  exf6 {[%clk 0:02:48]} 4. c4 {[%clk 0:03:00]}  d5 {[%clk 0:02:48]} 5. cxd5 {[%clk 0:02:59]}  Qxd5 {[%clk 0:02:49]} 6. Nc3 {[%clk 0:02:59]}  Qd8 {[%clk 0:02:49]} 7. e3 {[%clk 0:03:00]}  Bd6 {[%clk 0:02:48]} 8. g3 {[%clk 0:03:00]}  O-O {[%clk 0:02:48]} 9. Bg2 {[%clk 0:03:00]}  f5 {[%clk 0:02:47]} 10. Nge2 {[%clk 0:03:00]}  Nd7 {[%clk 0:02:46]} 11. O-O {[%clk 0:02:49]}  Nf6 {[%clk 0:02:46]} 12. Rc1 {[%clk 0:02:47]}  c6 {[%clk 0:02:40]} 13. Qd3 {[%clk 0:02:31]}  Qe7 {[%clk 0:02:38]} 14. Rfe1 {[%clk 0:02:29]}  Re8 {[%clk 0:02:23]} 15. a3 {[%clk 0:02:25]}  Be6 {[%clk 0:02:20]} 16. Nf4 {[%clk 0:02:21]}  Bxf4 {[%clk 0:02:05]} 17. gxf4 {[%clk 0:02:14]}  Rad8 {[%clk 0:02:05]} 18. b4 {[%clk 0:02:12]}  Bd5 {[%clk 0:01:59]} 19. Nxd5 {[%clk 0:02:10]}  Nxd5 {[%clk 0:01:58]} 20. Bf3 {[%clk 0:02:07]}  a6 {[%clk 0:01:56]} 21. Red1 {[%clk 0:01:53]}  Rd7 {[%clk 0:01:47]} 22. Rc5 {[%clk 0:01:51]}  Red8 {[%clk 0:01:47]} 23. Qb3 {[%clk 0:01:51]}  Qh4 {[%clk 0:01:32]} 24. a4 {[%clk 0:01:45]}  Nc7 {[%clk 0:01:14]} 25. Kg2 {[%clk 0:01:06]}  Qf6 {[%clk 0:00:56]} 26. Kf1 {[%clk 0:01:01]}  Qh4 {[%clk 0:00:56]} 27. Ke2 {[%clk 0:01:00]}  Re8 {[%clk 0:00:52]} 28. Re5 {[%clk 0:00:57]}  Red8 {[%clk 0:00:49]} 29. Rg1 {[%clk 0:00:54]}  Kf8 {[%clk 0:00:45]} 30. Qc3 {[%clk 0:00:47]}  Qf6 {[%clk 0:00:37]} 31. h4 {[%clk 0:00:31]}  h5 {[%clk 0:00:34]} 32. Qc5+ {[%clk 0:00:29]}  Qd6 {[%clk 0:00:29]} 33. Rb1 {[%clk 0:00:28]}  Kg7 {[%clk 0:00:27]} 34. Qxd6 {[%clk 0:00:28]}  Rxd6 {[%clk 0:00:28]} 35. Ke1 {[%clk 0:00:27]}  R8d7 {[%clk 0:00:26]} 36. Be2 {[%clk 0:00:27]}  b6 {[%clk 0:00:20]} 37. a5 {[%clk 0:00:26]}  b5 {[%clk 0:00:10]} 38. Rc5 {[%clk 0:00:25]}  Nd5 {[%clk 0:00:09]} 39. Bf3 {[%clk 0:00:25]}  Kf6 {[%clk 0:00:09]} 40. Bxd5 {[%clk 0:00:24]}  cxd5 {[%clk 0:00:09]} 41. Rbc1 {[%clk 0:00:25]}  Re7 {[%clk 0:00:09]} 42. Rc8 {[%clk 0:00:24]}  Ke6 {[%clk 0:00:08]} 43. Kd2 {[%clk 0:00:23]}  Red7 {[%clk 0:00:08]} 44. Kd3 {[%clk 0:00:22]}  Re7 {[%clk 0:00:08]} 45. R1c5 {[%clk 0:00:22]}  Red7 {[%clk 0:00:09]} 46. Re8+ {[%clk 0:00:21]}  Re7 {[%clk 0:00:09]} 47. Rb8 {[%clk 0:00:21]}  Red7 {[%clk 0:00:09]} 48. Rcc8 {[%clk 0:00:22]}  Re7 {[%clk 0:00:09]} 49. f3 {[%clk 0:00:22]}  Red7 {[%clk 0:00:09]} 50. Re8+ {[%clk 0:00:22]}  Kf6 {[%clk 0:00:09]} 51. Rbc8 {[%clk 0:00:20]}  Kg7 {[%clk 0:00:09]} 52. Rc5 {[%clk 0:00:20]}  Kf6 {[%clk 0:00:09]} 53. Rb8 {[%clk 0:00:20]}  Ke7 {[%clk 0:00:09]} 54. Rcc8 {[%clk 0:00:19]}  Kf6 {[%clk 0:00:09]} 55. Rb6 {[%clk 0:00:19]}  Ke7 {[%clk 0:00:08]} 56. Ra8 {[%clk 0:00:18]}  Rxb6 {[%clk 0:00:05]} 57. axb6 {[%clk 0:00:19]}  Kd6 {[%clk 0:00:05]} 58. Rxa6 {[%clk 0:00:19]}  Kc6 {[%clk 0:00:06]} 59. Ra7 {[%clk 0:00:19]}  Rb7 {[%clk 0:00:05]} 60. e4 {[%clk 0:00:17]}  dxe4+ {[%clk 0:00:04]} 61. fxe4 {[%clk 0:00:18]}  fxe4+ {[%clk 0:00:05]} 62. Kxe4 {[%clk 0:00:18]}  Rb8 {[%clk 0:00:02]} 63. Rxf7 {[%clk 0:00:18]}  Re8+ {[%clk 0:00:02]} 64. Kd3 {[%clk 0:00:17]}  Kxb6 {[%clk 0:00:02]} 65. Rf6+ {[%clk 0:00:18]}  Kc7 {[%clk 0:00:03]} 66. Rxg6 {[%clk 0:00:18]}  Re1 {[%clk 0:00:03]} 67. Rg5 {[%clk 0:00:18]}  Kc6 {[%clk 0:00:03]} 68. Rc5+ {[%clk 0:00:18]}  Kb6 {[%clk 0:00:03]} 69. Rxh5 {[%clk 0:00:19]}  Rd1+ {[%clk 0:00:04]} 70. Ke3 {[%clk 0:00:18]}  Rb1 {[%clk 0:00:04]} 71. f5 {[%clk 0:00:19]}  Rxb4 {[%clk 0:00:04]} 72. f6 {[%clk 0:00:19]}  Rxd4 {[%clk 0:00:04]} 73. Kxd4 {[%clk 0:00:19]} 1-0


[Site "https://www.chess.com"]

[Event "Titled Tuesday Blitz March 14 Early 2023"]
[White "So, Wesley"]
[Black "Urazayev, Arystanbek"]
[WhiteFideId "5202213"]
[BlackFideId "13709810"]
[WhiteElo "2739"]
[BlackElo "2479"]
[Result "1-0"]
[Round "04"]
[TimeControl "180+2"]
[Date "2023.03.14"]
[WhiteClock "0:01:14"]
[BlackClock "0:00:16"]

1. Nf3 {[%clk 0:02:57]}  d5 {[%clk 0:03:00]} 2. b3 {[%clk 0:02:54]}  Nf6 {[%clk 0:03:00]} 3. Bb2 {[%clk 0:02:53]}  e6 {[%clk 0:03:01]} 4. c4 {[%clk 0:02:52]}  Be7 {[%clk 0:03:01]} 5. g3 {[%clk 0:02:52]}  O-O {[%clk 0:03:01]} 6. Bg2 {[%clk 0:02:52]}  b6 {[%clk 0:03:02]} 7. O-O {[%clk 0:02:51]}  Bb7 {[%clk 0:03:03]} 8. cxd5 {[%clk 0:02:52]}  exd5 {[%clk 0:03:03]} 9. d4 {[%clk 0:02:51]}  c5 {[%clk 0:03:03]} 10. Nc3 {[%clk 0:02:50]}  Nc6 {[%clk 0:03:02]} 11. Rc1 {[%clk 0:02:49]}  cxd4 {[%clk 0:02:50]} 12. Nxd4 {[%clk 0:02:50]}  Nxd4 {[%clk 0:02:51]} 13. Qxd4 {[%clk 0:02:49]}  Bc5 {[%clk 0:02:52]} 14. Qd3 {[%clk 0:02:30]}  Qe7 {[%clk 0:02:48]} 15. Na4 {[%clk 0:02:21]}  Ba3 {[%clk 0:02:20]} 16. Bxf6 {[%clk 0:02:16]}  Qxf6 {[%clk 0:02:18]} 17. Rc7 {[%clk 0:02:16]}  Rab8 {[%clk 0:02:07]} 18. Bxd5 {[%clk 0:02:12]}  Bxd5 {[%clk 0:01:38]} 19. Qxd5 {[%clk 0:02:13]}  Rfd8 {[%clk 0:01:22]} 20. Qb5 {[%clk 0:02:12]}  Rd2 {[%clk 0:01:17]} 21. Rxa7 {[%clk 0:02:09]}  Rxa2 {[%clk 0:01:13]} 22. Nxb6 {[%clk 0:01:55]}  h6 {[%clk 0:00:49]} 23. Ra6 {[%clk 0:01:54]}  Ra1 {[%clk 0:00:40]} 24. Rxa1 {[%clk 0:01:50]}  Qxa1+ {[%clk 0:00:41]} 25. Kg2 {[%clk 0:01:50]}  Qb2 {[%clk 0:00:35]} 26. Ra8 {[%clk 0:01:35]}  Rxa8 {[%clk 0:00:35]} 27. Nxa8 {[%clk 0:01:36]}  Bf8 {[%clk 0:00:35]} 28. Qc4 {[%clk 0:01:23]}  g6 {[%clk 0:00:29]} 29. Nb6 {[%clk 0:01:20]}  h5 {[%clk 0:00:25]} 30. h4 {[%clk 0:01:20]}  Kg7 {[%clk 0:00:19]} 31. Nd5 {[%clk 0:01:18]}  Bd6 {[%clk 0:00:19]} 32. Qc3+ {[%clk 0:01:17]}  Qxc3 {[%clk 0:00:18]} 33. Nxc3 {[%clk 0:01:17]}  Be5 {[%clk 0:00:18]} 34. Nd5 {[%clk 0:01:17]}  f5 {[%clk 0:00:18]} 35. b4 {[%clk 0:01:14]}  Kf7 {[%clk 0:00:18]} 36. b5 {[%clk 0:01:15]}  Ke6 {[%clk 0:00:19]} 37. Nf4+ {[%clk 0:01:15]}  Bxf4 {[%clk 0:00:17]} 38. gxf4 {[%clk 0:01:16]}  Kd5 {[%clk 0:00:18]} 39. Kf3 {[%clk 0:01:14]}  Kc5 {[%clk 0:00:19]} 40. Ke3 {[%clk 0:01:14]}  Kxb5 {[%clk 0:00:19]} 41. Kd4 {[%clk 0:01:15]}  Kb4 {[%clk 0:00:16]} 42. f3 {[%clk 0:01:14]} 1-0


[Site "https://www.chess.com"]

[Event "Titled Tuesday Blitz March 14 Early 2023"]
[White "Bluebaum, Matthias"]
[Black "Ider, Borya"]
[WhiteFideId "24651516"]
[BlackFideId "4901134"]
[WhiteElo "2638"]
[BlackElo "2512"]
[Result "1-0"]
[Round "04"]
[TimeControl "180+2"]
[Date "2023.03.14"]
[WhiteClock "0:01:12"]
[BlackClock "0:00:10"]

1. d4 {[%clk 0:03:00]}  e6 {[%clk 0:02:59]} 2. c4 {[%clk 0:03:01]}  d5 {[%clk 0:02:57]} 3. Nc3 {[%clk 0:03:01]}  c6 {[%clk 0:02:55]} 4. Nf3 {[%clk 0:03:01]}  Nf6 {[%clk 0:02:54]} 5. Qc2 {[%clk 0:03:01]}  Nbd7 {[%clk 0:02:53]} 6. e4 {[%clk 0:03:01]}  dxe4 {[%clk 0:02:48]} 7. Nxe4 {[%clk 0:03:02]}  Bb4+ {[%clk 0:02:46]} 8. Bd2 {[%clk 0:03:02]}  Qa5 {[%clk 0:02:43]} 9. Nc3 {[%clk 0:02:56]}  c5 {[%clk 0:02:32]} 10. a3 {[%clk 0:02:47]}  cxd4 {[%clk 0:02:28]} 11. Nxd4 {[%clk 0:02:48]}  Qe5+ {[%clk 0:02:25]} 12. Be3 {[%clk 0:02:41]}  Bc5 {[%clk 0:02:16]} 13. Nf3 {[%clk 0:02:26]}  Qh5 {[%clk 0:02:14]} 14. Bxc5 {[%clk 0:02:21]}  Nxc5 {[%clk 0:01:59]} 15. b4 {[%clk 0:02:21]}  Ncd7 {[%clk 0:01:58]} 16. Be2 {[%clk 0:02:21]}  b6 {[%clk 0:01:24]} 17. O-O {[%clk 0:01:59]}  Bb7 {[%clk 0:01:20]} 18. Nb5 {[%clk 0:02:00]}  Ke7 {[%clk 0:00:34]} 19. Rad1 {[%clk 0:01:55]}  Ne5 {[%clk 0:00:24]} 20. Nxe5 {[%clk 0:01:35]}  Qxe5 {[%clk 0:00:25]} 21. Nd6 {[%clk 0:01:36]}  Bc6 {[%clk 0:00:24]} 22. b5 {[%clk 0:01:33]}  Bd7 {[%clk 0:00:24]} 23. Bf3 {[%clk 0:01:29]}  Rad8 {[%clk 0:00:24]} 24. Rfe1 {[%clk 0:01:30]}  Qf4 {[%clk 0:00:17]} 25. Rd4 {[%clk 0:01:24]}  Qg5 {[%clk 0:00:14]} 26. h4 {[%clk 0:01:17]}  Qg6 {[%clk 0:00:11]} 27. Qd2 {[%clk 0:01:14]}  Bc8 {[%clk 0:00:10]} 28. Qb4 {[%clk 0:01:12]} 1-0


[Site "https://www.chess.com"]

[Event "Titled Tuesday Blitz March 14 Early 2023"]
[White "Drygalov, Andrey"]
[Black "Lazavik, Denis"]
[WhiteFideId "24171735"]
[BlackFideId "13515110"]
[WhiteElo "2471"]
[BlackElo "2560"]
[Result "0-1"]
[Round "04"]
[TimeControl "180+2"]
[Date "2023.03.14"]
[WhiteClock "0:00:03"]
[BlackClock "0:00:04"]

1. e4 {[%clk 0:02:58]}  c5 {[%clk 0:03:00]} 2. Nf3 {[%clk 0:02:58]}  e6 {[%clk 0:03:01]} 3. d4 {[%clk 0:02:58]}  cxd4 {[%clk 0:03:01]} 4. Nxd4 {[%clk 0:02:59]}  Nc6 {[%clk 0:03:02]} 5. Nc3 {[%clk 0:02:55]}  Qc7 {[%clk 0:03:03]} 6. Be2 {[%clk 0:02:56]}  Nf6 {[%clk 0:03:02]} 7. Be3 {[%clk 0:02:54]}  a6 {[%clk 0:03:02]} 8. O-O {[%clk 0:02:50]}  Be7 {[%clk 0:03:02]} 9. f4 {[%clk 0:02:40]}  d6 {[%clk 0:03:01]} 10. Kh1 {[%clk 0:02:39]}  O-O {[%clk 0:03:01]} 11. Qe1 {[%clk 0:02:36]}  Nxd4 {[%clk 0:03:00]} 12. Bxd4 {[%clk 0:02:37]}  b5 {[%clk 0:03:01]} 13. Qg3 {[%clk 0:02:37]}  Bb7 {[%clk 0:02:38]} 14. a3 {[%clk 0:02:37]}  Rad8 {[%clk 0:02:31]} 15. Rae1 {[%clk 0:02:27]}  Ne8 {[%clk 0:02:25]} 16. Bd3 {[%clk 0:01:53]}  Rd7 {[%clk 0:02:03]} 17. Qh3 {[%clk 0:01:37]}  g6 {[%clk 0:01:10]} 18. f5 {[%clk 0:01:31]}  e5 {[%clk 0:01:10]} 19. fxg6 {[%clk 0:01:26]}  fxg6 {[%clk 0:00:43]} 20. Bb6 {[%clk 0:00:35]}  Qc8 {[%clk 0:00:43]} 21. Qe6+ {[%clk 0:00:32]}  Kg7 {[%clk 0:00:40]} 22. Rxf8 {[%clk 0:00:31]}  Bxf8 {[%clk 0:00:41]} 23. Rf1 {[%clk 0:00:28]}  Re7 {[%clk 0:00:35]} 24. Qxc8 {[%clk 0:00:27]}  Bxc8 {[%clk 0:00:36]} 25. Nd5 {[%clk 0:00:27]}  Rb7 {[%clk 0:00:36]} 26. Be3 {[%clk 0:00:27]}  Be6 {[%clk 0:00:36]} 27. Nb4 {[%clk 0:00:22]}  Nc7 {[%clk 0:00:30]} 28. Nc6 {[%clk 0:00:18]}  Bc4 {[%clk 0:00:21]} 29. Bxc4 {[%clk 0:00:14]}  bxc4 {[%clk 0:00:22]} 30. Nd8 {[%clk 0:00:14]}  Rb8 {[%clk 0:00:16]} 31. Rf7+ {[%clk 0:00:14]}  Kg8 {[%clk 0:00:16]} 32. Rxc7 {[%clk 0:00:14]}  Rxd8 {[%clk 0:00:17]} 33. Rxc4 {[%clk 0:00:15]}  d5 {[%clk 0:00:18]} 34. exd5 {[%clk 0:00:15]}  Rxd5 {[%clk 0:00:18]} 35. Kg1 {[%clk 0:00:15]}  Kf7 {[%clk 0:00:18]} 36. b4 {[%clk 0:00:15]}  Rd1+ {[%clk 0:00:17]} 37. Kf2 {[%clk 0:00:15]}  Ra1 {[%clk 0:00:17]} 38. Rc7+ {[%clk 0:00:15]}  Ke8 {[%clk 0:00:14]} 39. Rc8+ {[%clk 0:00:15]}  Kf7 {[%clk 0:00:15]} 40. Rc7+ {[%clk 0:00:15]}  Ke6 {[%clk 0:00:12]} 41. Rc6+ {[%clk 0:00:15]}  Kd5 {[%clk 0:00:13]} 42. Rxa6 {[%clk 0:00:15]}  Bxb4 {[%clk 0:00:13]} 43. a4 {[%clk 0:00:09]}  Ke4 {[%clk 0:00:13]} 44. Ra7 {[%clk 0:00:05]}  Ra2 {[%clk 0:00:11]} 45. Rc7 {[%clk 0:00:05]}  Rxa4 {[%clk 0:00:10]} 46. Rc4+ {[%clk 0:00:05]}  Kd5 {[%clk 0:00:11]} 47. Rc7 {[%clk 0:00:06]}  Ra2 {[%clk 0:00:10]} 48. Kf3 {[%clk 0:00:05]}  Bd6 {[%clk 0:00:08]} 49. Rxh7 {[%clk 0:00:05]}  e4+ {[%clk 0:00:09]} 50. Kg4 {[%clk 0:00:05]}  Rxc2 {[%clk 0:00:10]} 51. g3 {[%clk 0:00:04]}  Rc3 {[%clk 0:00:10]} 52. Bg5 {[%clk 0:00:04]}  Kc4 {[%clk 0:00:04]} 53. Rd7 {[%clk 0:00:04]}  Bc5 {[%clk 0:00:04]} 54. Rc7 {[%clk 0:00:04]}  Kd5 {[%clk 0:00:05]} 55. Rd7+ {[%clk 0:00:04]}  Ke6 {[%clk 0:00:04]} 56. Rd8 {[%clk 0:00:04]}  Rc2 {[%clk 0:00:03]} 57. Re8+ {[%clk 0:00:04]}  Kd5 {[%clk 0:00:03]} 58. Rd8+ {[%clk 0:00:03]}  Kc4 {[%clk 0:00:03]} 59. h4 {[%clk 0:00:04]}  e3 {[%clk 0:00:03]} 60. Re8 {[%clk 0:00:04]}  e2 {[%clk 0:00:03]} 61. Kf3 {[%clk 0:00:05]}  Kd3 {[%clk 0:00:04]} 62. Rd8+ {[%clk 0:00:05]}  Bd4 {[%clk 0:00:04]} 63. Re8 {[%clk 0:00:06]}  Ra2 {[%clk 0:00:02]} 64. h5 {[%clk 0:00:01]}  gxh5 {[%clk 0:00:02]} 65. Bf4 {[%clk 0:00:02]}  Ra1 {[%clk 0:00:02]} 66. Bd2 {[%clk 0:00:01]}  Rf1+ {[%clk 0:00:03]} 67. Kg2 {[%clk 0:00:02]}  Kxd2 {[%clk 0:00:04]} 68. Rd8 {[%clk 0:00:02]}  Kd3 {[%clk 0:00:04]} 69. Rxd4+ {[%clk 0:00:03]}  Kxd4 {[%clk 0:00:04]} 0-1


[Site "https://www.chess.com"]

[Event "Titled Tuesday Blitz March 14 Early 2023"]
[White "Dubov, Daniil"]
[Black "Jaskolka, Tomasz"]
[WhiteFideId "24126055"]
[BlackFideId "1170791"]
[WhiteElo "2802"]
[BlackElo "2155"]
[Result "1-0"]
[Round "04"]
[TimeControl "180+2"]
[Date "2023.03.14"]
[WhiteClock "0:00:31"]
[BlackClock "0:00:19"]

1. e4 {[%clk 0:03:00]}  c5 {[%clk 0:02:59]} 2. Nc3 {[%clk 0:03:00]}  e6 {[%clk 0:02:59]} 3. Nf3 {[%clk 0:03:00]}  Nc6 {[%clk 0:03:00]} 4. Be2 {[%clk 0:03:00]}  d6 {[%clk 0:02:58]} 5. O-O {[%clk 0:02:59]}  Nf6 {[%clk 0:02:59]} 6. d4 {[%clk 0:02:59]}  cxd4 {[%clk 0:02:59]} 7. Nxd4 {[%clk 0:03:00]}  Be7 {[%clk 0:02:58]} 8. Be3 {[%clk 0:02:58]}  O-O {[%clk 0:02:57]} 9. f4 {[%clk 0:02:57]}  a6 {[%clk 0:02:56]} 10. Qe1 {[%clk 0:02:54]}  Qc7 {[%clk 0:02:56]} 11. Qg3 {[%clk 0:02:53]}  Nxd4 {[%clk 0:02:41]} 12. Bxd4 {[%clk 0:02:53]}  b5 {[%clk 0:02:42]} 13. a3 {[%clk 0:02:36]}  Bb7 {[%clk 0:02:41]} 14. Bd3 {[%clk 0:02:36]}  Rfd8 {[%clk 0:01:59]} 15. Rae1 {[%clk 0:02:32]}  Bc6 {[%clk 0:01:37]} 16. Kh1 {[%clk 0:02:00]}  Rac8 {[%clk 0:01:06]} 17. Nd1 {[%clk 0:01:54]}  Qb7 {[%clk 0:01:04]} 18. Nf2 {[%clk 0:01:51]}  Nh5 {[%clk 0:00:58]} 19. Qg4 {[%clk 0:01:48]}  g6 {[%clk 0:00:58]} 20. Qf3 {[%clk 0:01:16]}  d5 {[%clk 0:00:45]} 21. e5 {[%clk 0:01:14]}  Ng7 {[%clk 0:00:45]} 22. Ng4 {[%clk 0:00:59]}  b4 {[%clk 0:00:44]} 23. Nh6+ {[%clk 0:00:44]}  Kf8 {[%clk 0:00:43]} 24. f5 {[%clk 0:00:44]}  exf5 {[%clk 0:00:41]} 25. Bxf5 {[%clk 0:00:36]}  gxf5 {[%clk 0:00:40]} 26. e6 {[%clk 0:00:34]}  fxe6 {[%clk 0:00:35]} 27. Rxe6 {[%clk 0:00:29]}  Nxe6 {[%clk 0:00:18]} 28. Qxf5+ {[%clk 0:00:29]}  Ke8 {[%clk 0:00:19]} 29. Qxe6 {[%clk 0:00:29]}  Rd6 {[%clk 0:00:19]} 30. Rf8+ {[%clk 0:00:30]}  Kxf8 {[%clk 0:00:19]} 31. Qf7# {[%clk 0:00:31]} 1-0


[Site "https://www.chess.com"]